[Event "Late-Titled-Tuesday-Blitz-January-16-2024"]
[Site "Chess.com"]
[Date "2024.01.16"]
[Round "8"]
[White "SEBAZZANO"]
[Black "shirovin"]
[Result "1-0"]
[WhiteElo "2219"]
[BlackElo "1998"]
[TimeControl "180+1"]
[EndTime "15:28:44 PST"]
[Termination "SEBAZZANO won on time"]

1. d4 {[%clk 0:03:00.9]} 1... Nf6 {[%clk 0:02:58.8]} 2. Bf4 {[%clk 0:03:00.6]}
2... g6 {[%clk 0:02:57.8]} 3. Nc3 {[%clk 0:03:00]} 3... d5 {[%clk 0:02:56]} 4.
e3 {[%clk 0:02:59.9]} 4... a6 {[%clk 0:02:55.3]} 5. h4 {[%clk 0:02:59.7]} 5...
h5 {[%clk 0:02:53.8]} 6. Nf3 {[%clk 0:02:59.5]} 6... Bg7 {[%clk 0:02:54.2]} 7.
Ne5 {[%clk 0:02:59.6]} 7... O-O {[%clk 0:02:53.7]} 8. Be2 {[%clk 0:03:00]} 8...
Nbd7 {[%clk 0:02:42.6]} 9. f3 {[%clk 0:02:59.2]} 9... c5 {[%clk 0:02:38.8]} 10.
Qd2 {[%clk 0:02:57.3]} 10... c4 {[%clk 0:02:37.3]} 11. g4 {[%clk 0:02:53.4]}
11... e6 {[%clk 0:02:29.4]} 12. Bg5 {[%clk 0:02:33.7]} 12... Qa5 {[%clk
0:02:22.3]} 13. Nxd7 {[%clk 0:02:27.8]} 13... Nxd7 {[%clk 0:02:18.8]} 14. gxh5
{[%clk 0:02:27.5]} 14... b5 {[%clk 0:02:16.5]} 15. hxg6 {[%clk 0:02:11.6]} 15...
fxg6 {[%clk 0:02:13.9]} 16. e4 {[%clk 0:01:58.5]} 16... b4 {[%clk 0:02:10.2]}
17. Nd1 {[%clk 0:01:56.8]} 17... dxe4 {[%clk 0:02:02]} 18. fxe4 {[%clk 0:01:55]}
18... Bb7 {[%clk 0:01:59.8]} 19. Nf2 {[%clk 0:01:49.2]} 19... c3 {[%clk
0:01:51.4]} 20. bxc3 {[%clk 0:01:46.3]} 20... bxc3 {[%clk 0:01:51]} 21. Qe3
{[%clk 0:01:46.7]} 21... Rac8 {[%clk 0:01:42.1]} 22. Bh6 {[%clk 0:01:37.6]}
22... Nf6 {[%clk 0:01:37.3]} 23. Rg1 {[%clk 0:01:26.9]} 23... Kh7 {[%clk
0:01:23.6]} 24. Bxg7 {[%clk 0:01:25.3]} 24... Kxg7 {[%clk 0:01:23.2]} 25. e5
{[%clk 0:01:17.6]} 25... Nh7 {[%clk 0:01:14.8]} 26. Bd3 {[%clk 0:01:16]} 26...
Rf5 {[%clk 0:01:03.5]} 27. Bxf5 {[%clk 0:01:05.8]} 27... exf5 {[%clk 0:01:03.2]}
28. Nd3 {[%clk 0:00:54.3]} 28... Qd8 {[%clk 0:00:46.9]} 29. Qg3 {[%clk 0:00:37]}
29... Rc6 {[%clk 0:00:36.4]} 30. Qf4 {[%clk 0:00:29.2]} 30... Rc4 {[%clk
0:00:29.6]} 31. h5 {[%clk 0:00:23.8]} 31... Rxd4 {[%clk 0:00:28.3]} 32. Rxg6+
{[%clk 0:00:21]} 32... Kh8 {[%clk 0:00:27.9]} 33. Qh6 {[%clk 0:00:18]} 33...
Re4+ {[%clk 0:00:22.1]} 34. Kd1 {[%clk 0:00:17.2]} 34... Qd7 {[%clk 0:00:18.3]}
35. Rb1 {[%clk 0:00:13.6]} 35... Bd5 {[%clk 0:00:14.5]} 36. Rb8+ {[%clk
0:00:10.5]} 1-0

[Event "Late-Titled-Tuesday-Blitz-January-16-2024"]
[Site "Chess.com"]
[Date "2024.01.16"]
[Round "8"]
[White "Verony64"]
[Black "Brahianzevich"]
[Result "0-1"]
[WhiteElo "2204"]
[BlackElo "2437"]
[TimeControl "180+1"]
[EndTime "15:28:46 PST"]
[Termination "Brahianzevich won by resignation"]

1. e4 {[%clk 0:02:55.1]} 1... c5 {[%clk 0:02:59.3]} 2. Nc3 {[%clk 0:02:55.2]}
2... a6 {[%clk 0:02:59.1]} 3. d3 {[%clk 0:02:55.5]} 3... b5 {[%clk 0:02:58.6]}
4. g3 {[%clk 0:02:55.6]} 4... Bb7 {[%clk 0:02:58.4]} 5. Bg2 {[%clk 0:02:56]}
5... e6 {[%clk 0:02:59.1]} 6. f4 {[%clk 0:02:56.2]} 6... d5 {[%clk 0:02:55.9]}
7. e5 {[%clk 0:02:55.2]} 7... Nh6 {[%clk 0:02:55.2]} 8. Nce2 {[%clk 0:02:55]}
8... Nf5 {[%clk 0:02:54]} 9. c3 {[%clk 0:02:53.7]} 9... Nc6 {[%clk 0:02:50.5]}
10. d4 {[%clk 0:02:49.9]} 10... Qb6 {[%clk 0:02:46]} 11. Nf3 {[%clk 0:02:49.1]}
11... Be7 {[%clk 0:02:46.1]} 12. O-O {[%clk 0:02:47.5]} 12... h5 {[%clk
0:02:44]} 13. Kh1 {[%clk 0:02:46.6]} 13... g6 {[%clk 0:02:36.2]} 14. Bh3 {[%clk
0:02:28]} 14... cxd4 {[%clk 0:02:22.4]} 15. cxd4 {[%clk 0:02:22.9]} 15... Rc8
{[%clk 0:02:21.3]} 16. Bxf5 {[%clk 0:02:21.4]} 16... gxf5 {[%clk 0:02:21.1]} 17.
h4 {[%clk 0:02:15.9]} 17... b4 {[%clk 0:01:52.6]} 18. Be3 {[%clk 0:02:09.6]}
18... a5 {[%clk 0:01:51.3]} 19. Neg1 {[%clk 0:02:02]} 19... Ba6 {[%clk
0:01:50.9]} 20. Rf2 {[%clk 0:02:02.3]} 20... Bc4 {[%clk 0:01:44.3]} 21. Nh3
{[%clk 0:02:01.2]} 21... b3 {[%clk 0:01:38.3]} 22. a3 {[%clk 0:01:41.9]} 22...
a4 {[%clk 0:01:38.4]} 23. Nhg5 {[%clk 0:01:39.6]} 23... Ba6 {[%clk 0:01:30.4]}
24. Rc1 {[%clk 0:01:38.9]} 24... Na5 {[%clk 0:01:30.5]} 25. Rxc8+ {[%clk
0:01:35.9]} 25... Bxc8 {[%clk 0:01:31.4]} 26. Nd2 {[%clk 0:01:20.9]} 26... Ba6
{[%clk 0:01:30]} 27. Qc1 {[%clk 0:01:12.2]} 27... Bxg5 {[%clk 0:00:55.3]} 28.
fxg5 {[%clk 0:01:10.3]} 28... Kd7 {[%clk 0:00:52.2]} 29. Qd1 {[%clk 0:01:07.1]}
29... Bd3 {[%clk 0:00:49.2]} 30. Kh2 {[%clk 0:01:01.1]} 30... Qb5 {[%clk
0:00:46.5]} 31. Nb1 {[%clk 0:00:51.7]} 31... Bc2 {[%clk 0:00:42]} 32. Qe1 {[%clk
0:00:50.6]} 32... Nc4 {[%clk 0:00:39.9]} 33. Bc1 {[%clk 0:00:48.9]} 33... Qb6
{[%clk 0:00:38.6]} 34. Rf4 {[%clk 0:00:43.9]} 34... Bxb1 {[%clk 0:00:36.2]} 35.
Qf2 {[%clk 0:00:29]} 35... Be4 {[%clk 0:00:33.8]} 36. Bd2 {[%clk 0:00:23.6]}
36... Nxd2 {[%clk 0:00:27.1]} 37. Qxd2 {[%clk 0:00:23.3]} 37... Rc8 {[%clk
0:00:27.7]} 38. Rf2 {[%clk 0:00:18.7]} 38... Rc2 {[%clk 0:00:27.1]} 39. Qe3
{[%clk 0:00:18.8]} 39... Qc6 {[%clk 0:00:24.5]} 40. Kh3 {[%clk 0:00:14.1]} 40...
Rxf2 {[%clk 0:00:23.3]} 41. Qxf2 {[%clk 0:00:15]} 41... Qc2 {[%clk 0:00:23.6]}
42. Qf1 {[%clk 0:00:14.2]} 42... Qd3 {[%clk 0:00:20.5]} 43. Qxd3 {[%clk
0:00:12]} 43... Bxd3 {[%clk 0:00:20.6]} 44. g4 {[%clk 0:00:12.8]} 44... fxg4+
{[%clk 0:00:20.4]} 45. Kg3 {[%clk 0:00:13.7]} 45... Bf5 {[%clk 0:00:20.4]} 46.
Kf4 {[%clk 0:00:14.6]} 46... Kc6 {[%clk 0:00:20.9]} 47. g6 {[%clk 0:00:14.4]}
47... Bxg6 {[%clk 0:00:20.1]} 48. Kg3 {[%clk 0:00:15.3]} 48... Kb5 {[%clk
0:00:20.6]} 49. Kf4 {[%clk 0:00:16.2]} 49... Kc4 {[%clk 0:00:21.5]} 50. Kg3
{[%clk 0:00:16.5]} 50... Kxd4 {[%clk 0:00:21.7]} 0-1

[Event "Late-Titled-Tuesday-Blitz-January-16-2024"]
[Site "Chess.com"]
[Date "2024.01.16"]
[Round "8"]
[White "NovakRatko"]
[Black "jup1978"]
[Result "1-0"]
[WhiteElo "2337"]
[BlackElo "2473"]
[TimeControl "180+1"]
[EndTime "15:28:47 PST"]
[Termination "NovakRatko won on time"]

1. d4 {[%clk 0:02:57.3]} 1... Nf6 {[%clk 0:02:58]} 2. c4 {[%clk 0:02:57.1]} 2...
e6 {[%clk 0:02:58.4]} 3. a3 {[%clk 0:02:53.8]} 3... b5 {[%clk 0:02:54.7]} 4.
cxb5 {[%clk 0:02:52.8]} 4... a6 {[%clk 0:02:54.9]} 5. e3 {[%clk 0:02:50]} 5...
d5 {[%clk 0:02:48.9]} 6. Nc3 {[%clk 0:02:49.4]} 6... Bd6 {[%clk 0:02:45.3]} 7.
f3 {[%clk 0:02:47.5]} 7... O-O {[%clk 0:02:44.4]} 8. e4 {[%clk 0:02:46.6]} 8...
dxe4 {[%clk 0:02:39.9]} 9. fxe4 {[%clk 0:02:46.5]} 9... e5 {[%clk 0:02:36.7]}
10. d5 {[%clk 0:02:43.1]} 10... Ng4 {[%clk 0:02:23.8]} 11. Nf3 {[%clk
0:02:41.8]} 11... f5 {[%clk 0:02:19.6]} 12. Bg5 {[%clk 0:02:24.2]} 12... Qe8
{[%clk 0:02:08.3]} 13. h3 {[%clk 0:02:23.9]} 13... Qh5 {[%clk 0:01:47.2]} 14.
hxg4 {[%clk 0:02:08]} 14... Qxh1 {[%clk 0:01:42.8]} 15. gxf5 {[%clk 0:02:08.3]}
15... g6 {[%clk 0:01:33.1]} 16. fxg6 {[%clk 0:01:58.6]} 16... Bg4 {[%clk
0:01:17.5]} 17. gxh7+ {[%clk 0:01:53.1]} 17... Kh8 {[%clk 0:01:17.2]} 18. Qe2
{[%clk 0:01:47.3]} 18... axb5 {[%clk 0:01:12.3]} 19. Nxb5 {[%clk 0:01:41.1]}
19... Bb4+ {[%clk 0:01:02.8]} 20. Bd2 {[%clk 0:00:35.8]} 20... Bxd2+ {[%clk
0:00:42.6]} 21. Kxd2 {[%clk 0:00:36.7]} 21... Na6 {[%clk 0:00:36]} 22. Rc1
{[%clk 0:00:27.5]} 22... Rab8 {[%clk 0:00:16.8]} 23. a4 {[%clk 0:00:25.4]} 23...
Qh6+ {[%clk 0:00:16.2]} 24. Qe3 {[%clk 0:00:20]} 24... Qxh7 {[%clk 0:00:15.5]}
25. Be2 {[%clk 0:00:16.6]} 25... Nb4 {[%clk 0:00:13.3]} 26. Ng5 {[%clk
0:00:15.6]} 26... Qg6 {[%clk 0:00:12]} 27. Rh1+ {[%clk 0:00:13.8]} 27... Kg8
{[%clk 0:00:11]} 28. Bxg4 {[%clk 0:00:10.9]} 28... Rf4 {[%clk 0:00:09.4]} 29.
Be6+ {[%clk 0:00:11.1]} 29... Kf8 {[%clk 0:00:09.1]} 30. Rh8+ {[%clk 0:00:10.7]}
30... Kg7 {[%clk 0:00:07.3]} 31. Rxb8 {[%clk 0:00:10]} 31... Kf6 {[%clk
0:00:05.2]} 32. Nf3 {[%clk 0:00:08.5]} 32... Qxg2+ {[%clk 0:00:04.3]} 33. Qe2
{[%clk 0:00:06.6]} 33... Qxf3 {[%clk 0:00:04]} 34. Rf8+ {[%clk 0:00:06.8]} 34...
Ke7 {[%clk 0:00:03.4]} 35. Qxf3 {[%clk 0:00:07.3]} 35... Rxf8 {[%clk 0:00:01.7]}
36. Qg3 {[%clk 0:00:06]} 1-0

[Event "Late-Titled-Tuesday-Blitz-January-16-2024"]
[Site "Chess.com"]
[Date "2024.01.16"]
[Round "8"]
[White "jcibarra"]
[Black "karinachess1"]
[Result "1-0"]
[WhiteElo "2874"]
[BlackElo "2629"]
[TimeControl "180+1"]
[EndTime "15:28:49 PST"]
[Termination "jcibarra won on time"]

1. e4 {[%clk 0:03:00.9]} 1... e5 {[%clk 0:02:59.9]} 2. Nf3 {[%clk 0:03:00.7]}
2... Nc6 {[%clk 0:03:00.1]} 3. d4 {[%clk 0:02:59.8]} 3... exd4 {[%clk
0:03:00.3]} 4. Nxd4 {[%clk 0:03:00.5]} 4... Bc5 {[%clk 0:03:00.4]} 5. Nb3 {[%clk
0:03:00.5]} 5... Bb6 {[%clk 0:03:00.9]} 6. Qe2 {[%clk 0:03:00.8]} 6... d6 {[%clk
0:02:54.4]} 7. Nc3 {[%clk 0:03:00.1]} 7... Nf6 {[%clk 0:02:53.7]} 8. Be3 {[%clk
0:03:00.1]} 8... O-O {[%clk 0:02:51.9]} 9. O-O-O {[%clk 0:02:59.6]} 9... Re8
{[%clk 0:02:51.8]} 10. f3 {[%clk 0:02:59.7]} 10... d5 {[%clk 0:02:47.4]} 11. Bg5
{[%clk 0:02:31]} 11... d4 {[%clk 0:02:27.9]} 12. Nd5 {[%clk 0:02:26.8]} 12...
Be6 {[%clk 0:02:10.5]} 13. Nxf6+ {[%clk 0:02:26.7]} 13... gxf6 {[%clk
0:02:10.7]} 14. Bh6 {[%clk 0:02:22.6]} 14... a5 {[%clk 0:02:02]} 15. Qe1 {[%clk
0:02:18.1]} 15... Kh8 {[%clk 0:02:00.8]} 16. a3 {[%clk 0:01:48.9]} 16... a4
{[%clk 0:01:37.1]} 17. Nd2 {[%clk 0:01:47.9]} 17... Ne5 {[%clk 0:01:37.1]} 18.
Qh4 {[%clk 0:01:31.7]} 18... Rg8 {[%clk 0:01:21.8]} 19. f4 {[%clk 0:01:23.8]}
19... Ng4 {[%clk 0:01:18.1]} 20. f5 {[%clk 0:01:22.6]} 20... Ba2 {[%clk
0:01:04.9]} 21. Bc4 {[%clk 0:01:16.1]} 21... Bxc4 {[%clk 0:01:01]} 22. Nxc4
{[%clk 0:01:17]} 22... Nxh6 {[%clk 0:00:54.8]} 23. Qxh6 {[%clk 0:01:16.5]} 23...
Bc5 {[%clk 0:00:48.6]} 24. e5 {[%clk 0:01:01.3]} 24... b5 {[%clk 0:00:40.4]} 25.
Nd2 {[%clk 0:00:47.2]} 25... fxe5 {[%clk 0:00:28.4]} 26. Ne4 {[%clk 0:00:47]}
26... Bf8 {[%clk 0:00:28.6]} 27. Qh5 {[%clk 0:00:43]} 27... f6 {[%clk
0:00:28.1]} 28. Rd3 {[%clk 0:00:40.8]} 28... c5 {[%clk 0:00:20]} 29. g4 {[%clk
0:00:36.1]} 29... c4 {[%clk 0:00:15.6]} 30. Rh3 {[%clk 0:00:36.7]} 30... Rg7
{[%clk 0:00:16.2]} 31. g5 {[%clk 0:00:37.4]} 31... Be7 {[%clk 0:00:16.7]} 32.
Qh6 {[%clk 0:00:33.3]} 32... Ra6 {[%clk 0:00:08.8]} 33. Rg1 {[%clk 0:00:32.6]}
33... Qf8 {[%clk 0:00:04.2]} 34. Rg4 {[%clk 0:00:28.5]} 34... b4 {[%clk
0:00:04.4]} 35. axb4 {[%clk 0:00:15.6]} 35... c3 {[%clk 0:00:04.4]} 36. bxc3
{[%clk 0:00:15.6]} 36... a3 {[%clk 0:00:04.2]} 37. Kb1 {[%clk 0:00:15.9]} 37...
a2+ {[%clk 0:00:04.4]} 38. Ka1 {[%clk 0:00:16.5]} 38... Bxb4 {[%clk 0:00:03.4]}
39. gxf6 {[%clk 0:00:07.6]} 1-0

[Event "Late-Titled-Tuesday-Blitz-January-16-2024"]
[Site "Chess.com"]
[Date "2024.01.16"]
[Round "8"]
[White "Polish_fighter3000"]
[Black "Sebastian"]
[Result "0-1"]
[WhiteElo "3092"]
[BlackElo "3002"]
[TimeControl "180+1"]
[EndTime "15:28:50 PST"]
[Termination "Sebastian won on time"]

1. e4 {[%clk 0:02:49]} 1... e5 {[%clk 0:02:59.8]} 2. Nf3 {[%clk 0:02:49.7]} 2...
Nc6 {[%clk 0:03:00.3]} 3. Bb5 {[%clk 0:02:50.3]} 3... Nf6 {[%clk 0:03:00]} 4. d3
{[%clk 0:02:50.3]} 4... Bc5 {[%clk 0:02:59.9]} 5. Bxc6 {[%clk 0:02:50.1]} 5...
dxc6 {[%clk 0:02:59.8]} 6. O-O {[%clk 0:02:51]} 6... Bd6 {[%clk 0:02:54.3]} 7.
Bg5 {[%clk 0:02:48.3]} 7... h6 {[%clk 0:02:53.8]} 8. Bh4 {[%clk 0:02:48.5]} 8...
g5 {[%clk 0:02:38.7]} 9. Bg3 {[%clk 0:02:48.3]} 9... Be6 {[%clk 0:02:39.2]} 10.
Nxe5 {[%clk 0:02:21]} 10... h5 {[%clk 0:02:36.6]} 11. h3 {[%clk 0:02:21.6]}
11... Rg8 {[%clk 0:01:56.3]} 12. Nd2 {[%clk 0:00:52.9]} 12... h4 {[%clk
0:01:54.3]} 13. Bh2 {[%clk 0:00:53.5]} 13... g4 {[%clk 0:01:51.3]} 14. hxg4
{[%clk 0:00:50.3]} 14... Nxg4 {[%clk 0:01:30.5]} 15. f4 {[%clk 0:00:29.2]} 15...
Bxe5 {[%clk 0:01:21.5]} 16. Nf3 {[%clk 0:00:17.3]} 16... Bd4+ {[%clk 0:01:00]}
17. Kh1 {[%clk 0:00:16.9]} 17... Ne3 {[%clk 0:00:59.5]} 18. Qe2 {[%clk
0:00:13.5]} 18... Rxg2 {[%clk 0:00:46]} 19. Rf2 {[%clk 0:00:13.2]} 19... h3
{[%clk 0:00:46.2]} 20. f5 {[%clk 0:00:09]} 20... Nxf5 {[%clk 0:00:41]} 21. Rxg2
{[%clk 0:00:08.4]} 21... hxg2+ {[%clk 0:00:40.8]} 22. Qxg2 {[%clk 0:00:09.3]}
22... Ne7 {[%clk 0:00:34]} 23. c3 {[%clk 0:00:06.9]} 23... Bf6 {[%clk
0:00:24.9]} 24. Rf1 {[%clk 0:00:03.1]} 24... Qxd3 {[%clk 0:00:22.7]} 25. Ne1
{[%clk 0:00:03.4]} 25... Qd1 {[%clk 0:00:16.4]} 26. Nc2 {[%clk 0:00:02.2]} 26...
Qh5 {[%clk 0:00:10.4]} 27. Rxf6 {[%clk 0:00:02.2]} 27... O-O-O {[%clk
0:00:10.9]} 28. Nd4 {[%clk 0:00:02.8]} 28... c5 {[%clk 0:00:09.3]} 29. Nxe6
{[%clk 0:00:02.3]} 29... fxe6 {[%clk 0:00:08.8]} 30. Rf1 {[%clk 0:00:02.6]}
30... Nc6 {[%clk 0:00:08.2]} 31. Qg3 {[%clk 0:00:02.7]} 31... e5 {[%clk
0:00:07.8]} 32. Qf3 {[%clk 0:00:03.1]} 32... Qh6 {[%clk 0:00:06.6]} 33. Qg4+
{[%clk 0:00:02.4]} 33... Kb8 {[%clk 0:00:06.7]} 34. Rf2 {[%clk 0:00:01.9]} 34...
b6 {[%clk 0:00:06]} 35. Kg2 {[%clk 0:00:02]} 35... Kb7 {[%clk 0:00:06.1]} 36.
Bg3 {[%clk 0:00:02.4]} 36... Rh8 {[%clk 0:00:05]} 37. Rf1 {[%clk 0:00:02.5]}
37... Qd2+ {[%clk 0:00:04.6]} 38. Bf2 {[%clk 0:00:01.4]} 38... Ne7 {[%clk
0:00:02.8]} 0-1

[Event "Late-Titled-Tuesday-Blitz-January-16-2024"]
[Site "Chess.com"]
[Date "2024.01.16"]
[Round "8"]
[White "maurovargas01"]
[Black "katharinareinecke"]
[Result "0-1"]
[WhiteElo "1846"]
[BlackElo "2022"]
[TimeControl "180+1"]
[EndTime "15:28:55 PST"]
[Termination "katharinareinecke won by checkmate"]

1. e4 {[%clk 0:02:26.7]} 1... c6 {[%clk 0:02:59.3]} 2. Nc3 {[%clk 0:02:24.6]}
2... d5 {[%clk 0:02:59.2]} 3. d3 {[%clk 0:02:24.9]} 3... g6 {[%clk 0:02:49.2]}
4. g3 {[%clk 0:02:24.8]} 4... Bg7 {[%clk 0:02:48.2]} 5. Bg2 {[%clk 0:02:23.9]}
5... Nf6 {[%clk 0:02:41.4]} 6. e5 {[%clk 0:02:23]} 6... Nfd7 {[%clk 0:02:41]} 7.
f4 {[%clk 0:02:23]} 7... e6 {[%clk 0:02:40.6]} 8. Nf3 {[%clk 0:02:22.5]} 8...
O-O {[%clk 0:02:40.1]} 9. O-O {[%clk 0:02:22.1]} 9... c5 {[%clk 0:02:40]} 10.
Nb5 {[%clk 0:02:15.4]} 10... Nc6 {[%clk 0:02:25.3]} 11. Nd6 {[%clk 0:02:14.9]}
11... f6 {[%clk 0:02:11.1]} 12. Qe1 {[%clk 0:02:07.9]} 12... fxe5 {[%clk
0:02:09.2]} 13. fxe5 {[%clk 0:02:07.6]} 13... Ndxe5 {[%clk 0:02:04.3]} 14. Nxc8
{[%clk 0:02:07.2]} 14... Rxc8 {[%clk 0:01:51.5]} 15. Ng5 {[%clk 0:02:02.4]}
15... Rxf1+ {[%clk 0:01:44.7]} 16. Bxf1 {[%clk 0:02:00.2]} 16... Qf6 {[%clk
0:01:32.8]} 17. Bh3 {[%clk 0:01:53]} 17... Nd8 {[%clk 0:01:18.7]} 18. Bf4 {[%clk
0:01:45.4]} 18... h6 {[%clk 0:01:10]} 19. Bxe5 {[%clk 0:01:43.2]} 19... Qxe5
{[%clk 0:01:05.1]} 20. Qxe5 {[%clk 0:01:42.9]} 20... Bxe5 {[%clk 0:01:04.3]} 21.
Nxe6 {[%clk 0:01:42.6]} 21... Bxb2 {[%clk 0:00:46.3]} 22. Rf1 {[%clk 0:01:35.8]}
22... Nc6 {[%clk 0:00:24.2]} 23. Nxc5 {[%clk 0:01:27.2]} 23... Re8 {[%clk
0:00:19.2]} 24. Nxb7 {[%clk 0:01:19.7]} 24... Rb8 {[%clk 0:00:16.3]} 25. Be6+
{[%clk 0:01:08.6]} 25... Kg7 {[%clk 0:00:11.3]} 26. Rf7+ {[%clk 0:01:06.4]}
26... Kh8 {[%clk 0:00:11.4]} 27. Bxd5 {[%clk 0:01:04.9]} 27... Bd4+ {[%clk
0:00:09.1]} 28. Kg2 {[%clk 0:01:02.6]} 28... Ne5 {[%clk 0:00:09.3]} 29. Re7
{[%clk 0:00:51.8]} 29... Ng4 {[%clk 0:00:08.4]} 30. Bb3 {[%clk 0:00:46.3]} 30...
Rf8 {[%clk 0:00:07.8]} 31. Rf7 {[%clk 0:00:40.9]} 31... Re8 {[%clk 0:00:05.5]}
32. Kf3 {[%clk 0:00:35.6]} 32... h5 {[%clk 0:00:05.3]} 33. Kg2 {[%clk
0:00:33.7]} 33... Re2+ {[%clk 0:00:05]} 34. Kf1 {[%clk 0:00:31.3]} 34... Rf2+
{[%clk 0:00:05.2]} 35. Ke1 {[%clk 0:00:31]} 35... Rxh2 {[%clk 0:00:04.6]} 36.
Rf1 {[%clk 0:00:20.8]} 36... Bc3+ {[%clk 0:00:04.5]} 37. Kd1 {[%clk 0:00:20.1]}
37... Ne3+ {[%clk 0:00:04.4]} 38. Kc1 {[%clk 0:00:17.8]} 38... Nxf1 {[%clk
0:00:04.6]} 39. Nc5 {[%clk 0:00:14.1]} 39... Nxg3 {[%clk 0:00:04.4]} 40. Kd1
{[%clk 0:00:10.4]} 40... Rh1# {[%clk 0:00:04.6]} 0-1

[Event "Late-Titled-Tuesday-Blitz-January-16-2024"]
[Site "Chess.com"]
[Date "2024.01.16"]
[Round "8"]
[White "anasta10"]
[Black "IMRosen"]
[Result "0-1"]
[WhiteElo "2532"]
[BlackElo "2683"]
[TimeControl "180+1"]
[EndTime "15:28:56 PST"]
[Termination "IMRosen won by resignation"]

1. Nf3 {[%clk 0:03:00.9]} 1... d5 {[%clk 0:02:59.7]} 2. g3 {[%clk 0:03:00.7]}
2... Nf6 {[%clk 0:03:00.4]} 3. Bg2 {[%clk 0:03:01]} 3... e6 {[%clk 0:03:00.5]}
4. O-O {[%clk 0:03:01.6]} 4... Be7 {[%clk 0:02:59.7]} 5. c4 {[%clk 0:03:02.2]}
5... d4 {[%clk 0:02:56.7]} 6. b3 {[%clk 0:02:58.5]} 6... c5 {[%clk 0:02:56.9]}
7. Bb2 {[%clk 0:02:59.1]} 7... O-O {[%clk 0:02:57.4]} 8. e3 {[%clk 0:02:58.7]}
8... Nc6 {[%clk 0:02:58.1]} 9. exd4 {[%clk 0:02:57.1]} 9... cxd4 {[%clk
0:02:59]} 10. Re1 {[%clk 0:02:57.8]} 10... a5 {[%clk 0:02:49.8]} 11. d3 {[%clk
0:02:52.6]} 11... Bc5 {[%clk 0:02:39.9]} 12. Nbd2 {[%clk 0:02:50.8]} 12... Nd7
{[%clk 0:02:40]} 13. Ne4 {[%clk 0:02:42.7]} 13... Re8 {[%clk 0:02:40]} 14. a3
{[%clk 0:02:42.2]} 14... e5 {[%clk 0:02:22.7]} 15. Nfd2 {[%clk 0:02:20.7]} 15...
Bf8 {[%clk 0:02:20.5]} 16. f4 {[%clk 0:02:19.2]} 16... h6 {[%clk 0:02:05.3]} 17.
Qf3 {[%clk 0:02:03.6]} 17... Ra6 {[%clk 0:01:53.4]} 18. Qf1 {[%clk 0:01:47.2]}
18... f5 {[%clk 0:01:45.9]} 19. Nf2 {[%clk 0:01:46.1]} 19... Nf6 {[%clk
0:01:46.6]} 20. fxe5 {[%clk 0:01:22.2]} 20... Nxe5 {[%clk 0:01:44.5]} 21. Re2
{[%clk 0:01:14.5]} 21... Rae6 {[%clk 0:01:35.3]} 22. Rae1 {[%clk 0:01:13.8]}
22... Neg4 {[%clk 0:01:29.9]} 23. Nxg4 {[%clk 0:01:05.1]} 23... fxg4 {[%clk
0:01:22.6]} 24. Rxe6 {[%clk 0:01:03.6]} 24... Rxe6 {[%clk 0:01:18.1]} 25. Rxe6
{[%clk 0:01:03.3]} 25... Bxe6 {[%clk 0:01:19]} 26. Bxb7 {[%clk 0:01:03.3]} 26...
Nd7 {[%clk 0:00:50]} 27. Bg2 {[%clk 0:00:44.5]} 27... Nc5 {[%clk 0:00:50.3]} 28.
b4 {[%clk 0:00:15.5]} 28... Na4 {[%clk 0:00:45.1]} 29. Ba1 {[%clk 0:00:11.2]}
29... axb4 {[%clk 0:00:45.7]} 30. axb4 {[%clk 0:00:11.6]} 30... Bxb4 {[%clk
0:00:46.4]} 31. Ne4 {[%clk 0:00:12.2]} 31... Bc3 {[%clk 0:00:34.2]} 32. Kh1
{[%clk 0:00:11.4]} 32... Bf7 {[%clk 0:00:22.6]} 33. Qd1 {[%clk 0:00:11]} 33...
Qa5 {[%clk 0:00:19]} 34. h3 {[%clk 0:00:05.4]} 34... gxh3 {[%clk 0:00:08.9]} 35.
Bxh3 {[%clk 0:00:06.3]} 35... Qe5 {[%clk 0:00:09.1]} 36. Kh2 {[%clk 0:00:04.2]}
36... Kh7 {[%clk 0:00:07.6]} 37. Bg2 {[%clk 0:00:04.3]} 37... Bxa1 {[%clk
0:00:07.6]} 38. Qxa1 {[%clk 0:00:04]} 38... Qh5+ {[%clk 0:00:07.6]} 39. Kg1
{[%clk 0:00:03.6]} 39... Qa5 {[%clk 0:00:02]} 40. Qe1 {[%clk 0:00:04]} 40...
Qxe1+ {[%clk 0:00:01.8]} 41. Kh2 {[%clk 0:00:04]} 41... Nc3 {[%clk 0:00:02.3]}
0-1

[Event "Late-Titled-Tuesday-Blitz-January-16-2024"]
[Site "Chess.com"]
[Date "2024.01.16"]
[Round "8"]
[White "tarno17"]
[Black "dianamirza"]
[Result "1-0"]
[WhiteElo "2171"]
[BlackElo "1997"]
[TimeControl "180+1"]
[EndTime "15:28:57 PST"]
[Termination "tarno17 won on time"]

1. e4 {[%clk 0:03:00.9]} 1... c5 {[%clk 0:02:57.6]} 2. Nf3 {[%clk 0:03:00.3]}
2... Nc6 {[%clk 0:02:57.2]} 3. Bb5 {[%clk 0:02:58.9]} 3... e6 {[%clk 0:02:56.2]}
4. O-O {[%clk 0:02:58.5]} 4... Nf6 {[%clk 0:02:56.6]} 5. Re1 {[%clk 0:02:49.2]}
5... Be7 {[%clk 0:02:54.1]} 6. c3 {[%clk 0:02:48.1]} 6... a6 {[%clk 0:02:54.6]}
7. Ba4 {[%clk 0:02:47.5]} 7... b5 {[%clk 0:02:54.6]} 8. Bc2 {[%clk 0:02:44.1]}
8... Bb7 {[%clk 0:02:53.5]} 9. d4 {[%clk 0:02:26.4]} 9... cxd4 {[%clk 0:02:44]}
10. Nxd4 {[%clk 0:02:24.1]} 10... O-O {[%clk 0:02:41.9]} 11. Be3 {[%clk
0:02:15.8]} 11... Ne5 {[%clk 0:02:31.3]} 12. h3 {[%clk 0:02:10]} 12... Nc4
{[%clk 0:02:06.2]} 13. Bc1 {[%clk 0:02:09.3]} 13... d5 {[%clk 0:01:49.6]} 14. e5
{[%clk 0:02:08]} 14... Nd7 {[%clk 0:01:48.6]} 15. f4 {[%clk 0:02:02.5]} 15... b4
{[%clk 0:01:23.5]} 16. Nd2 {[%clk 0:01:44.7]} 16... bxc3 {[%clk 0:01:17.5]} 17.
bxc3 {[%clk 0:01:44.6]} 17... Bc5 {[%clk 0:01:11.5]} 18. Nb3 {[%clk 0:01:38]}
18... Ba7 {[%clk 0:00:49.6]} 19. Kh2 {[%clk 0:01:23.5]} 19... Qh4 {[%clk
0:00:43.7]} 20. g3 {[%clk 0:01:18.6]} 20... Qe7 {[%clk 0:00:39.2]} 21. Qh5
{[%clk 0:01:09.4]} 21... g6 {[%clk 0:00:38.8]} 22. Qf3 {[%clk 0:01:03.3]} 22...
Nc5 {[%clk 0:00:38.2]} 23. Be3 {[%clk 0:01:00.3]} 23... Nxe3 {[%clk 0:00:33]}
24. Rxe3 {[%clk 0:00:59.7]} 24... Nxb3 {[%clk 0:00:33.1]} 25. axb3 {[%clk
0:00:59.6]} 25... Rfc8 {[%clk 0:00:32.3]} 26. Bd3 {[%clk 0:00:52.2]} 26... Rxc3
{[%clk 0:00:31.5]} 27. Ra4 {[%clk 0:00:47.6]} 27... Bxd4 {[%clk 0:00:28]} 28.
Rxd4 {[%clk 0:00:46.8]} 28... Rxb3 {[%clk 0:00:28.2]} 29. Bc2 {[%clk 0:00:32.3]}
29... Rb2 {[%clk 0:00:27.3]} 30. Re2 {[%clk 0:00:29]} 30... Qc5 {[%clk
0:00:26.7]} 31. Rdd2 {[%clk 0:00:20]} 31... d4 {[%clk 0:00:25.5]} 32. Qf2 {[%clk
0:00:14.4]} 32... Rc8 {[%clk 0:00:22.7]} 33. Bd3 {[%clk 0:00:07.5]} 33... Rxd2
{[%clk 0:00:21.2]} 34. Rxd2 {[%clk 0:00:08.4]} 34... a5 {[%clk 0:00:18.8]} 35.
g4 {[%clk 0:00:07.5]} 35... Bd5 {[%clk 0:00:15.6]} 36. f5 {[%clk 0:00:07.5]}
36... exf5 {[%clk 0:00:15.1]} 37. gxf5 {[%clk 0:00:07.7]} 37... gxf5 {[%clk
0:00:09.5]} 38. Bxf5 {[%clk 0:00:06.4]} 38... Be6 {[%clk 0:00:08]} 39. Bxe6
{[%clk 0:00:03.5]} 39... fxe6 {[%clk 0:00:07.6]} 40. Qf6 {[%clk 0:00:03.2]}
40... Qf8 {[%clk 0:00:05.1]} 41. Rg2+ {[%clk 0:00:03.6]} 1-0